fUSD/lending_fUSD_20250616
["ID","MTS","AMOUNT","RATE_DAILY","PERIOD"]
[366073899,1750050652103,-151.0,0.00016573,2]
[366073900,1750050652113,-151.0,0.00016573,2]
[366073901,1750050652122,-151.0,0.00016573,2]
[366073902,1750050652132,-152.886043,0.00016573,2]
[366073903,1750050652141,-151.90546,0.00016573,2]
[366073904,1750050652151,-151.0,0.00016573,2]
[366073905,1750050652161,-151.0,0.00016573,2]
[366073906,1750050652170,-1458.71121,0.00016573,2]
[366073907,1750050652180,-1458.71121,0.00016573,2]
[366073908,1750050652190,-262.913495,0.00016573,2]
[366073909,1750050652200,-262.913495,0.00016573,2]
[366073910,1750050652210,-151.324056,0.00016573,2]
[366073911,1750050652220,-151.0,0.00016573,2]
[366073912,1750050652230,-153.093908,0.00016573,2]
[366073913,1750050652240,-151.0,0.00016573,2]
[366073914,1750050652249,-151.0,0.00016573,2]
[366073915,1750050652258,-151.0,0.00016573,2]
[366073916,1750050652268,-205.806729,0.00016573,2]
[366073917,1750050652278,-157.153631,0.00016573,2]
[366073918,1750050652287,-242.162993,0.00016573,2]
[366073919,1750050652297,-242.162993,0.00016573,2]
[366073920,1750050652306,-197.514728,0.00016573,2]
[366073921,1750050652316,-151.0,0.00016573,2]
[366073922,1750050652326,-197.514728,0.00016573,2]
[366073923,1750050652336,-151.0,0.00016573,2]
[366073924,1750050652346,-151.0,0.00016573,2]
[366073925,1750050652356,-151.0,0.00016573,2]
[366073926,1750050652365,-151.0,0.00016573,2]
[366073927,1750050652375,-189.37124,0.00016573,2]
[366073928,1750050652385,-189.37124,0.00016573,2]
[366073929,1750050652395,-337.984874,0.00016573,2]
[366073930,1750050652405,-337.984874,0.00016573,2]
[366073931,1750050652414,-233.324831,0.00016573,2]
[366073932,1750050652424,-233.324831,0.00016573,2]
[366073933,1750050652433,-151.0,0.00016573,2]
[366073934,1750050652443,-151.0,0.00016573,2]
[366073935,1750050652453,-202.263444,0.00016573,2]
[366073936,1750050652462,-554.322754,0.00016573,2]
[366073937,1750050652472,-554.322754,0.00016573,2]
[366073938,1750050652481,-288.871699,0.00016573,2]
[366073939,1750050652491,-288.871699,0.00016573,2]
[366073940,1750050652500,-151.0,0.00016573,2]
[366073941,1750050652511,-151.0,0.00016573,2]
[366073942,1750050652520,-151.0,0.00016573,2]
[366073943,1750050652530,-1378.480937,0.00016573,2]
[366073944,1750050652540,-1378.480937,0.00016573,2]
[366073945,1750050652549,-241.794227,0.00016573,2]
[366073946,1750050652560,-241.794227,0.00016573,2]
[366073947,1750050652569,-470.002049,0.00016573,2]
[366073948,1750050652579,-470.002049,0.00016573,2]
[366073949,1750050652589,-720.026803,0.00016573,2]
[366073950,1750050652599,-720.026803,0.00016573,2]
[366073951,1750050652608,-151.0,0.00016573,2]
[366073952,1750050652618,-1663.998482,0.00016573,2]
[366073953,1750050652628,-1663.998482,0.00016573,2]
[366073954,1750050652639,-151.0,0.00016573,2]
[366073955,1750050652649,-151.0,0.00016573,2]
[366073956,1750050652659,-292.44622,0.00016573,2]
[366073957,1750050652670,-292.44622,0.00016573,2]
[366073958,1750050652679,-788.0,0.00016574,2]
[366073959,1750050652689,-1242.57684771,0.00016575,2]
[366073960,1750050652701,-500.0,0.00016575,2]
[366073961,1750050652711,-501.88,0.0001658,2]
[366073962,1750050652721,-151.0,0.00016581,2]
[366073963,1750050652731,-151.0,0.00016581,2]
[366073964,1750050652741,-151.0,0.00016581,2]
[366073965,1750050652751,-151.0,0.00016581,2]
[366073966,1750050652761,-151.0,0.00016581,2]
[366073967,1750050652771,-151.0,0.00016581,2]
[366073968,1750050652781,-151.0,0.00016581,2]
[366073969,1750050652791,-151.0,0.00016581,2]
[366073970,1750050652801,-151.0,0.00016581,2]
[366073971,1750050652812,-286.847384,0.00016581,2]
[366073972,1750050652822,-286.847384,0.00016581,2]
[366073973,1750050652832,-1021.386622,0.00016581,2]
[366073974,1750050652842,-1021.386622,0.00016581,2]
[366073975,1750050652852,-154.193656,0.00016581,2]
[366073976,1750050652861,-151.0,0.00016581,2]
[366073977,1750050652871,-1000.0,0.00016581,2]
[366073978,1750050652883,-1000.0,0.00016581,2]
[366073979,1750050652900,-1000.0,0.00016581,2]
[366073980,1750050652910,-1000.0,0.00016581,2]
[366073981,1750050652919,-1000.0,0.00016581,2]
[366073982,1750050652929,-1000.0,0.00016581,2]
[366073983,1750050652939,-1000.0,0.00016581,2]
[366073984,1750050652948,-1000.0,0.00016581,2]
[366073985,1750050652958,-1000.0,0.00016581,2]
[366073986,1750050652968,-1000.0,0.00016581,2]
[366073987,1750050652978,-1000.0,0.00016581,2]
[366073988,1750050652988,-1000.0,0.00016581,2]
[366073989,1750050652998,-1000.0,0.00016581,2]
[366073990,1750050653008,-1000.0,0.00016581,2]
[366073991,1750050653017,-1000.0,0.00016581,2]
[366073992,1750050653027,-1000.0,0.00016581,2]
[366073993,1750050653037,-1000.0,0.00016581,2]
[366073994,1750050653046,-1000.0,0.00016581,2]
[366073995,1750050653057,-1000.0,0.00016581,2]
[366073996,1750050653067,-1000.0,0.00016581,2]
[366073997,1750050653076,-1000.0,0.00016581,2]
[366073998,1750050653086,-1000.0,0.00016581,2]
[366073999,1750050653096,-1000.0,0.00016581,2]
[366074000,1750050653105,-1000.0,0.00016581,2]
[366074001,1750050653115,-1000.0,0.00016581,2]
[366074002,1750050653125,-1000.0,0.00016581,2]
[366074003,1750050653135,-521.80852257,0.00016581,2]
[366074004,1750050653144,-151.0,0.00016581,2]
[366074005,1750050653153,-204.277756,0.00016581,2]
[366074006,1750050653163,-151.0,0.00016582,2]
[366074007,1750050653172,-151.0,0.00016582,2]
[366074008,1750050653182,-151.0,0.00016582,2]
[366074009,1750050653192,-1159.78202,0.00016582,2]
[366074010,1750050653202,-151.0,0.00016582,2]
[366074011,1750050653212,-151.0,0.00016582,2]
[366074012,1750050653221,-151.0,0.00016582,2]
[366074013,1750050653231,-151.0,0.00016582,2]
[366074014,1750050653241,-151.0,0.00016582,2]
[366074015,1750050653252,-243.533237,0.00016582,2]
[366074016,1750050653262,-243.533237,0.00016582,2]
[366074017,1750050653272,-151.0,0.00016582,2]
[366074018,1750050653282,-151.0,0.00016584,2]
[366074019,1750050653291,-267.084131,0.00016584,2]
[366074020,1750050653301,-151.0,0.00016584,2]
[366074021,1750050653312,-169.722649,0.00016584,2]
[366074022,1750050653322,-169.722649,0.00016584,2]
[366074023,1750050653332,-151.493084,0.00016584,2]
[366074024,1750050653342,-151.0,0.00016584,2]
[366074025,1750050653352,-151.0,0.00016584,2]
[366074026,1750050653362,-242.162993,0.00016585,2]
[366074027,1750050653372,-242.162993,0.00016585,2]
[366074028,1750050653382,-152.39189,0.00016585,2]
[366074029,1750050653391,-151.0,0.00016585,2]
[366074030,1750050653401,-151.0,0.00016585,2]
[366074031,1750050653412,-240.475048,0.00016589,2]
[366074032,1750050653422,-240.475048,0.00016589,2]
[366074033,1750050653432,-151.0,0.00016589,2]
[366074034,1750050653442,-277.194465,0.00016589,2]
[366074035,1750050653452,-277.194465,0.00016589,2]
[366074036,1750050653463,-151.0,0.00016589,2]
[366074037,1750050653472,-375.932254,0.00016589,2]
[366074038,1750050653482,-375.932254,0.00016589,2]
[366074039,1750050653492,-151.0,0.00016589,2]
[366074040,1750050653502,-151.178491,0.00016589,2]
[366074041,1750050653512,-151.0,0.00016589,2]
[366074042,1750050653521,-151.0,0.00016589,2]
[366074043,1750050653531,-500.0,0.00016589,2]
[366074044,1750050653541,-243.742684,0.00016589,2]
[366074045,1750050653552,-243.742684,0.00016589,2]
[366074046,1750050653564,-5602.62034827,0.0001659,2]
[366074047,1750050653575,-146413.71347243,0.0001659,2]
[366074048,1750050653585,-151.0,0.0001659,2]
[366074049,1750050653595,-151.0,0.0001659,2]
[366074050,1750050653605,-151.0,0.0001659,2]
[366074051,1750050653615,-159.858245,0.0001659,2]
[366074052,1750050653624,-159.858245,0.0001659,2]
[366074053,1750050653635,-286.847384,0.0001659,2]
[366074054,1750050653645,-286.847384,0.0001659,2]
[366074055,1750050653655,-240.475048,0.0001659,2]
[366074056,1750050653666,-240.475048,0.0001659,2]
[366074057,1750050653675,-250.572244,0.0001659,2]
[366074058,1750050653685,-151.0,0.0001659,2]
[366074059,1750050653695,-151.0,0.0001659,2]
[366074060,1750050653704,-1021.386622,0.0001659,2]
[366074061,1750050653714,-1021.386622,0.0001659,2]
[366074062,1750050653724,-542.618918,0.0001659,2]
[366074063,1750050653734,-542.618918,0.0001659,2]
[366074064,1750050653744,-151.0,0.0001659,2]
[366074065,1750050653754,-277.194465,0.0001659,2]
[366074066,1750050653764,-277.194465,0.0001659,2]
[366074067,1750050653775,-168.481778,0.0001659,2]
[366074068,1750050653787,-262.913495,0.0001659,2]
[366074069,1750050653796,-262.913495,0.0001659,2]
[366074070,1750050653806,-151.0,0.0001659,2]
[366074071,1750050653817,-151.0,0.0001659,2]
[366074072,1750050653827,-151.0,0.0001659,2]
[366074073,1750050653836,-197.514728,0.0001659,2]
[366074074,1750050653846,-197.514728,0.0001659,2]
[366074075,1750050653856,-151.0,0.0001659,2]
[366074076,1750050653866,-151.0,0.0001659,2]
[366074077,1750050653875,-189.37124,0.0001659,2]
[366074078,1750050653889,-189.37124,0.0001659,2]
[366074079,1750050653899,-337.984874,0.0001659,2]
[366074080,1750050653909,-337.984874,0.0001659,2]
[366074081,1750050653919,-233.324831,0.0001659,2]
[366074082,1750050653930,-233.324831,0.0001659,2]
[366074083,1750050653940,-151.0,0.0001659,2]
[366074084,1750050653950,-554.322754,0.0001659,2]
[366074085,1750050653960,-554.322754,0.0001659,2]
[366074086,1750050653970,-151.0,0.0001659,2]
[366074087,1750050653979,-151.0,0.0001659,2]
[366074088,1750050653989,-151.970844,0.0001659,2]
[366074089,1750050653999,-151.0,0.0001659,2]
[366074090,1750050654008,-151.0,0.0001659,2]
[366074091,1750050654018,-151.0,0.0001659,2]
[366074092,1750050654028,-151.0,0.0001659,2]
[366074093,1750050654037,-151.0,0.0001659,2]
[366074094,1750050654047,-151.0,0.0001659,2]
[366074095,1750050654056,-151.0,0.0001659,2]
[366074096,1750050654068,-1378.480937,0.0001659,2]
[366074097,1750050654078,-1378.480937,0.0001659,2]
[366074098,1750050654088,-151.0,0.0001659,2]
[366074099,1750050654098,-241.794227,0.0001659,2]
[366074100,1750050654107,-241.794227,0.0001659,2]
[366074101,1750050654117,-470.002049,0.0001659,2]
[366074102,1750050654127,-470.002049,0.0001659,2]
[366074103,1750050654137,-152.598064,0.0001659,2]
[366074104,1750050654148,-151.0,0.0001659,2]
[366074105,1750050654158,-152.487399,0.0001659,2]
[366074106,1750050654167,-234.411313,0.0001659,2]
[366074107,1750050654177,-234.411313,0.0001659,2]
[366074108,1750050654187,-720.026803,0.0001659,2]
[366074109,1750050654196,-720.026803,0.0001659,2]
[366074110,1750050654206,-225.721112,0.0001659,2]
[366074111,1750050654215,-225.721112,0.0001659,2]
[366074112,1750050654226,-151.0,0.0001659,2]
[366074113,1750050654586,-151.0,0.0001659,2]
[366074114,1750050654599,-239.266396,0.0001659,2]
[366074115,1750050654608,-239.266396,0.0001659,2]
[366074116,1750050654618,-308.298984,0.0001659,2]
[366074117,1750050654628,-215.870497,0.0001659,2]
[366074118,1750050654638,-792.792477,0.0001659,2]
[366074119,1750050654648,-308.298984,0.0001659,2]
[366074120,1750050654657,-215.870497,0.0001659,2]
[366074121,1750050654668,-792.792477,0.0001659,2]
[366074122,1750050654678,-151.0,0.0001659,2]
[366074123,1750050654687,-151.0,0.0001659,2]
[366074124,1750050654697,-1185.300664,0.0001659,2]
[366074125,1750050654707,-1185.300664,0.0001659,2]
[366074126,1750050654723,-159.643284,0.0001659,2]
[366074127,1750050654734,-159.643284,0.0001659,2]
[366074128,1750050654744,-151.362411,0.0001659,2]
[366074129,1750050654754,-151.362411,0.0001659,2]
[366074130,1750050654765,-151.0,0.0001659,2]
[366074131,1750050654775,-151.0,0.0001659,2]
[366074132,1750050654785,-1663.998482,0.0001659,2]
[366074133,1750050654794,-1663.998482,0.0001659,2]
[366074134,1750050654804,-442.925765,0.0001659,2]
[366074135,1750050654815,-442.925765,0.0001659,2]
[366074136,1750050654824,-151.0,0.0001659,2]
[366074137,1750050654834,-407.236363,0.0001659,2]
[366074138,1750050654844,-407.236363,0.0001659,2]
[366074139,1750050654853,-151.0,0.0001659,2]
[366074140,1750050654864,-151.0,0.0001659,2]
[366074141,1750050654874,-220.569412,0.0001659,2]
[366074142,1750050654886,-220.569412,0.0001659,2]
[366074143,1750050654897,-151.0,0.0001659,2]
[366074144,1750050654906,-292.44622,0.0001659,2]
[366074145,1750050654916,-292.44622,0.0001659,2]
[366074146,1750050654927,-8239.16491354,0.00016592,2]
[366074147,1750050654937,-151.0,0.00016592,2]
[366074148,1750050654946,-151.0,0.00016592,2]
[366074149,1750050654956,-288.871699,0.00016592,2]
[366074150,1750050654969,-288.871699,0.00016592,2]
[366074151,1750050654978,-997.8494,0.00016599,2]
[366074152,1750050654988,-501.88,0.00016599,2]
[366074153,1750050654997,-1775.99,0.000166,2]
[366074154,1750050655007,-3000.0,0.000166,2]
[366074155,1750050655016,-3000.0,0.000166,2]
[366074156,1750050655026,-3000.0,0.000166,2]
[366074157,1750050655036,-3000.0,0.000166,2]
[366074158,1750050655046,-3000.96,0.000166,2]
[366074159,1750050655056,-194.139107,0.000166,2]
[366074160,1750050655067,-375.932254,0.000166,2]
[366074161,1750050655077,-375.932254,0.000166,2]
[366074162,1750050655087,-151.0,0.000166,2]
[366074163,1750050655098,-151.0,0.000166,2]
[366074164,1750050655108,-151.0,0.000166,2]
[366074165,1750050655118,-314.67914,0.000166,2]
[366074166,1750050655128,-314.67914,0.000166,2]
[366074167,1750050655137,-184.311177,0.000166,2]
[366074168,1750050655147,-184.311177,0.000166,2]
[366074169,1750050655157,-201.001992,0.000166,2]
[366074170,1750050655167,-201.001992,0.000166,2]
[366074171,1750050655176,-169.722649,0.000166,2]
[366074172,1750050655186,-151.0,0.000166,2]
[366074173,1750050655196,-151.0,0.000166,2]
[366074174,1750050655205,-169.722649,0.000166,2]
[366074175,1750050655215,-300.580708,0.000166,2]
[366074176,1750050655224,-151.0,0.000166,2]
[366074177,1750050655234,-151.0,0.000166,2]
[366074178,1750050655244,-151.0,0.000166,2]
[366074179,1750050655254,-1458.71121,0.000166,2]
[366074180,1750050655264,-1458.71121,0.000166,2]
[366074181,1750050655274,-197.514728,0.000166,2]
[366074182,1750050655283,-197.514728,0.000166,2]
[366074183,1750050655293,-151.0,0.000166,2]
[366074184,1750050655303,-151.0,0.000166,2]
[366074185,1750050655312,-189.37124,0.000166,2]
[366074186,1750050655323,-189.37124,0.000166,2]
[366074187,1750050655332,-337.984874,0.000166,2]
[366074188,1750050655343,-337.984874,0.000166,2]
[366074189,1750050655355,-233.324831,0.000166,2]
[366074190,1750050655365,-233.324831,0.000166,2]
[366074191,1750050655374,-151.554033,0.000166,2]
[366074192,1750050655384,-151.0,0.000166,2]
[366074193,1750050655394,-151.0,0.000166,2]
[366074194,1750050655404,-1159.78202,0.000166,2]
[366074195,1750050655414,-151.0,0.000166,2]
[366074196,1750050655423,-1159.78202,0.000166,2]
[366074197,1750050655433,-151.0,0.000166,2]
[366074198,1750050655442,-151.0,0.000166,2]
[366074199,1750050655452,-151.0,0.000166,2]
[366074200,1750050655462,-554.322754,0.000166,2]
[366074201,1750050655471,-554.322754,0.000166,2]
[366074202,1750050655482,-249.130525,0.000166,2]
[366074203,1750050655492,-151.0,0.000166,2]
[366074204,1750050655501,-151.0,0.000166,2]
[366074205,1750050655513,-151.0,0.000166,2]
[366074206,1750050655523,-151.0,0.000166,2]
[366074207,1750050655533,-151.0,0.000166,2]
[366074208,1750050655543,-151.0,0.000166,2]
[366074209,1750050655553,-151.0,0.000166,2]
[366074210,1750050655563,-151.0,0.000166,2]
[366074211,1750050655572,-151.0,0.000166,2]
[366074212,1750050655582,-241.794227,0.000166,2]
[366074213,1750050655592,-241.794227,0.000166,2]
[366074214,1750050655601,-243.533237,0.000166,2]
[366074215,1750050655611,-243.533237,0.000166,2]
[366074216,1750050655621,-151.0,0.000166,2]
[366074217,1750050655631,-500.0,0.000166,6]
[366074218,1750050655641,-500.0,0.000166,2]
[366074219,1750050655651,-151.0,0.000166,2]
[366074220,1750050655662,-243.742684,0.000166,2]
[366074221,1750050655672,-243.742684,0.000166,2]
[366074222,1750050655682,-151.0,0.00016601,2]
[366074223,1750050655691,-343.756474,0.00016601,2]
[366074224,1750050655700,-343.756474,0.00016601,2]
[366074225,1750050655710,-151.0,0.00016601,2]
[366074226,1750050655719,-151.0,0.00016601,2]
[366074227,1750050655729,-151.0,0.00016601,2]
[366074228,1750050655738,-151.0,0.00016601,2]
[366074229,1750050655747,-151.0,0.00016601,2]
[366074230,1750050655757,-151.0,0.00016601,2]
[366074231,1750050655766,-151.0,0.00016601,2]
[366074232,1750050655775,-151.0,0.00016601,2]
[366074233,1750050655784,-151.0,0.00016601,2]
[366074234,1750050655794,-151.0,0.00016601,2]
[366074235,1750050655804,-151.0,0.00016601,2]
[366074236,1750050655814,-151.0,0.00016601,2]
[366074237,1750050655823,-159.858245,0.00016601,2]
[366074238,1750050655833,-159.858245,0.00016601,2]
[366074239,1750050655844,-286.847384,0.00016601,2]
[366074240,1750050655854,-286.847384,0.00016601,2]
[366074241,1750050655864,-150.0,0.00016601,2]
[366074242,1750050655873,-10624.93378698,0.00016601,2]
[366074243,1750050655884,-150.0,0.00016601,2]
[366074244,1750050655895,-983.77718255,0.00016601,2]
[366074245,1750050655905,-150.0,0.00016601,2]
[366074246,1750050655915,-95454.62142342,0.00016601,2]
[366074247,1750050655924,-150.0,0.00016601,2]
[366074248,1750050655934,-4794.49972876,0.00016601,2]
[366074249,1750050655943,-151.0,0.00016601,2]
[366074250,1750050655952,-151.0,0.00016601,2]
[366074251,1750050655964,-1021.386622,0.00016601,2]
[366074252,1750050655973,-1021.386622,0.00016601,2]
[366074253,1750050655983,-542.618918,0.00016601,2]
[366074254,1750050655993,-542.618918,0.00016601,2]
[366074255,1750050656002,-151.0,0.00016601,2]
[366074256,1750050656012,-262.913495,0.00016601,2]
[366074257,1750050656021,-262.913495,0.00016601,2]
[366074258,1750050656031,-151.0,0.00016601,2]
[366074259,1750050656041,-151.0,0.00016601,2]
[366074260,1750050656050,-151.0,0.00016601,2]
[366074261,1750050656059,-242.162993,0.00016601,2]
[366074262,1750050656069,-242.162993,0.00016601,2]
[366074263,1750050656078,-151.0,0.00016601,2]
[366074264,1750050656088,-151.0,0.00016601,2]
[366074265,1750050656097,-151.0,0.00016601,2]
[366074266,1750050656107,-1159.78202,0.00016601,2]
[366074267,1750050656116,-151.0,0.00016601,2]
[366074268,1750050656128,-1159.78202,0.00016601,2]
[366074269,1750050656137,-151.0,0.00016601,2]
[366074270,1750050656147,-151.0,0.00016601,2]
[366074271,1750050656156,-151.0,0.00016601,2]
[366074272,1750050656167,-151.0,0.00016601,2]
[366074273,1750050656176,-668.19501,0.00016601,2]
[366074274,1750050656186,-668.19501,0.00016601,2]
[366074275,1750050656195,-151.0,0.00016601,2]
[366074276,1750050656204,-189.277504,0.00016601,2]
[366074277,1750050656214,-189.277504,0.00016601,2]
[366074278,1750050656224,-151.0,0.00016601,2]
[366074279,1750050656234,-151.0,0.00016601,2]
[366074280,1750050656243,-1863.682486,0.00016601,2]
[366074281,1750050656252,-1863.682486,0.00016601,2]
[366074282,1750050656262,-151.0,0.00016601,2]
[366074283,1750050656272,-151.0,0.00016601,2]
[366074284,1750050656281,-1378.480937,0.00016601,2]
[366074285,1750050656291,-1378.480937,0.00016601,2]
[366074286,1750050656301,-470.002049,0.00016601,2]
[366074287,1750050656311,-470.002049,0.00016601,2]
[366074288,1750050656321,-363.74482,0.00016601,2]
[366074289,1750050656331,-356.943683,0.00016601,2]
[366074290,1750050656340,-363.74482,0.00016601,2]
[366074291,1750050656349,-356.943683,0.00016601,2]
[366074292,1750050656359,-243.533237,0.00016601,2]
[366074293,1750050656368,-243.533237,0.00016601,2]
[366074294,1750050656378,-151.0,0.00016601,2]
[366074295,1750050656388,-151.0,0.00016601,2]
[366074296,1750050656398,-234.411313,0.00016601,2]
[366074297,1750050656407,-234.411313,0.00016601,2]
[366074298,1750050656417,-720.026803,0.00016601,2]
[366074299,1750050656427,-720.026803,0.00016601,2]
[366074300,1750050656436,-225.721112,0.00016601,2]
[366074301,1750050656446,-225.721112,0.00016601,2]
[366074302,1750050656455,-151.0,0.00016601,2]
[366074303,1750050656464,-151.0,0.00016601,2]
[366074304,1750050656474,-239.266396,0.00016601,2]
[366074305,1750050656484,-239.266396,0.00016601,2]
[366074306,1750050656494,-308.298984,0.00016601,2]
[366074307,1750050656503,-215.870497,0.00016601,2]
[366074308,1750050656513,-792.792477,0.00016601,2]
[366074309,1750050656523,-308.298984,0.00016601,2]
[366074310,1750050656532,-215.870497,0.00016601,2]
[366074311,1750050656542,-792.792477,0.00016601,2]
[366074312,1750050656552,-151.0,0.00016601,2]
[366074313,1750050656562,-300.691172,0.00016601,2]
[366074314,1750050656572,-1185.300664,0.00016601,2]
[366074315,1750050656582,-1185.300664,0.00016601,2]
[366074316,1750050656593,-1663.998482,0.00016601,2]
[366074317,1750050656603,-1663.998482,0.00016601,2]
[366074318,1750050656613,-407.236363,0.00016601,2]
[366074319,1750050656623,-407.236363,0.00016601,2]
[366074320,1750050656633,-151.0,0.00016601,2]
[366074321,1750050656642,-151.0,0.00016601,2]
[366074322,1750050656652,-500.0,0.00016601,2]
[366074323,1750050656662,-500.0,0.00016601,2]
[366074324,1750050656672,-500.0,0.00016601,2]
[366074325,1750050656681,-500.0,0.00016601,2]
[366074326,1750050656691,-501.88,0.00016601,2]
[366074327,1750050656701,-501.88,0.00016601,2]
[366074328,1750050656711,-501.88,0.00016601,2]
[366074329,1750050656720,-501.88,0.00016601,2]
[366074330,1750050656729,-501.88,0.00016601,2]
[366074331,1750050656740,-300.0,0.00016601,2]
[366074332,1750050656750,-151.0,0.00016602,2]
[366074333,1750050656759,-153.867163,0.00016602,2]
[366074334,1750050656769,-151.0,0.00016602,2]
[366074335,1750050656779,-151.0,0.00016602,2]
[366074336,1750050656790,-151.0,0.00016602,2]
[366074337,1750050656800,-151.0,0.00016602,2]
[366074338,1750050656809,-151.0,0.00016602,2]
[366074339,1750050656820,-343.756474,0.00016602,2]
[366074340,1750050656829,-343.756474,0.00016602,2]
[366074341,1750050656839,-343.756474,0.00016602,2]
[366074342,1750050656853,-343.756474,0.00016602,2]
[366074343,1750050656862,-343.756474,0.00016602,2]
[366074344,1750050656872,-343.756474,0.00016602,2]
[366074345,1750050656882,-343.756474,0.00016602,2]
[366074346,1750050656896,-343.756474,0.00016602,2]
[366074347,1750050656906,-343.756474,0.00016602,2]
[366074348,1750050656916,-343.756474,0.00016602,2]
[366074349,1750050656925,-151.0,0.00016602,2]
[366074350,1750050656939,-151.0,0.00016602,2]
[366074351,1750050656949,-151.0,0.00016602,2]
[366074352,1750050656959,-151.0,0.00016602,2]
[366074353,1750050656971,-151.0,0.00016602,2]
[366074354,1750050656982,-151.0,0.00016602,2]
[366074355,1750050657104,-151.0,0.00016602,2]
[366074356,1750050657114,-273.413564,0.00016602,2]
[366074357,1750050657124,-151.0,0.00016602,2]
[366074358,1750050657134,-151.0,0.00016602,2]
[366074359,1750050657143,-151.0,0.00016602,2]
[366074360,1750050657154,-151.0,0.00016602,2]
[366074361,1750050657163,-151.0,0.00016602,2]
[366074362,1750050657172,-151.0,0.00016602,2]
[366074363,1750050657182,-151.0,0.00016602,2]
[366074364,1750050657192,-245.446376,0.00016602,2]
[366074365,1750050657201,-151.0,0.00016602,2]
[366074366,1750050657211,-151.0,0.00016602,2]
[366074367,1750050657219,-151.0,0.00016602,2]
[366074368,1750050657229,-151.0,0.00016602,2]
[366074369,1750050657240,-151.0,0.00016602,2]
[366074370,1750050657250,-171.515589,0.00016602,2]
[366074371,1750050657259,-151.0,0.00016602,2]
[366074372,1750050657269,-151.0,0.00016602,2]
[366074373,1750050657279,-151.0,0.00016602,2]
[366074374,1750050657288,-151.0,0.00016602,2]
[366074375,1750050657298,-291.48554,0.00016602,2]
[366074376,1750050657307,-151.0,0.00016602,2]
[366074377,1750050657317,-151.0,0.00016602,2]
[366074378,1750050657327,-223.943319,0.00016602,2]
[366074379,1750050657336,-151.0,0.00016602,2]
[366074380,1750050657346,-151.0,0.00016602,2]
[366074381,1750050657355,-151.0,0.00016602,2]
[366074382,1750050657364,-151.0,0.00016602,2]
[366074383,1750050657373,-151.0,0.00016602,2]
[366074384,1750050657383,-151.0,0.00016602,2]
[366074385,1750050657392,-151.0,0.00016602,2]
[366074386,1750050657403,-151.0,0.00016602,2]
[366074387,1750050657412,-151.0,0.00016602,2]
[366074388,1750050657422,-151.0,0.00016602,2]
[366074389,1750050657430,-151.0,0.00016602,2]
[366074390,1750050657439,-151.0,0.00016602,2]
[366074391,1750050657448,-151.0,0.00016602,2]
[366074392,1750050657457,-151.0,0.00016602,2]
[366074393,1750050657467,-151.0,0.00016602,2]
[366074394,1750050657477,-180.825827,0.00016602,2]
[366074395,1750050657486,-151.0,0.00016602,2]
[366074396,1750050657495,-151.0,0.00016602,2]
[366074397,1750050657504,-151.0,0.00016602,2]
[366074398,1750050657513,-258.469195,0.00016602,2]